bitfinex-derivatives/quotes_ETHF0:USTF0_20260115
["timestamp","ask_amount","ask_price","bid_price","bid_amount"]
[1768482763460,1.276,3364.3,3362.8,0.13973663]
[1768482763653,0.9030143,3364.2,3362.8,0.13973663]
[1768482763953,1.276,3364.3,3362.8,0.13973663]
[1768482764154,0.9030143,3364.2,3362.8,0.13973663]
[1768482764350,1.276,3364.3,3362.8,0.13973663]
[1768482764551,0.90328736,3364.2,3362.8,0.13973663]
[1768482764750,1.276,3364.2,3362.8,0.13973663]
[1768482765254,0.90352015,3364.1,3362.8,0.13973663]
[1768482765454,1.276,3364.2,3362.8,0.13973663]
[1768482765650,0.90352103,3364.1,3362.8,0.13973663]
[1768482765853,1.46939102,3364.5,3362.8,0.13973663]
[1768482766152,2.17952138,3364.4,3362.8,0.13973663]
[1768482766350,0.90352138,3364.3,3362.8,0.13973663]
[1768482766951,2.17952138,3364.3,3362.8,0.28845663]
[1768482767151,0.90352138,3364.2,3362.8,0.28845663]
[1768482767354,0.90352138,3364.1,3362.8,0.28845663]
[1768482767657,1.276,3364.3,3362.8,0.28845663]
[1768482767858,0.9037853,3364.2,3362.8,0.28845663]
[1768482768154,0.9037853,3364.1,3362.8,0.28845663]
[1768482768350,1.276,3364.3,3362.8,0.28845663]
[1768482768556,0.90379368,3364.2,3362.8,0.28845663]
[1768482768748,0.90379368,3364.1,3362.8,0.28845663]
[1768482768948,1.276,3364.3,3362.8,0.28845663]
[1768482769149,0.90379367,3364.2,3362.8,0.28845663]
[1768482769350,1.17961627,3363.9,3362.8,0.28845663]
[1768482778961,1.275,3364.3,3362.9,0.13172135]
[1768482779164,2.08424866,3364.2,3362.9,0.13172135]
[1768482779366,0.90463239,3364.1,3362.9,0.13172135]
[1768482779570,1.17961627,3364.2,3362.9,0.13172135]
[1768482779869,0.90476298,3364.1,3362.9,0.13172135]
[1768482780166,1.17961627,3364.2,3362.9,0.13172135]
[1768482780367,0.90476284,3364.1,3362.9,0.13172135]
[1768482780565,1.275,3364.6,3363.2,0.28043135]
[1768482780770,0.90477273,3364.5,3363.5,1.31133762]
[1768482780972,1.17961627,3364.9,3363.5,1.31133762]
[1768482781169,0.90470555,3364.8,3363.5,1.31133762]
[1768482781368,0.90470555,3364.7,3363.5,1.31133762]
[1768482781570,0.90470555,3364.6,3363.5,0.13172135]
[1768482781773,1.17961627,3364.7,3363.5,0.13172135]
[1768482781972,0.90440813,3364.6,3363.5,0.13172135]
[1768482782171,1.17961627,3364.7,3363.5,0.13172135]
[1768482785868,1.17961627,3364.6,3363.5,0.13172135]
[1768482793187,1.17961627,3364.7,3363.5,0.13172135]
[1768482798088,1.17961627,3364.3,3363.4,0.1487]
[1768482798674,1.17961627,3364.5,3363.4,0.1487]
[1768482800992,1.17961627,3364.0,3363.1,0.13172135]
[1768482801289,1.17961627,3364.0,3362.8,0.28995796]
[1768482801687,1.17961627,3364.2,3362.8,0.28995796]
[1768482801889,1.17961627,3364.2,3362.9,0.14872]
[1768482802387,1.17961627,3364.2,3362.9,1.32833627]
[1768482803791,1.17961627,3364.2,3363.0,0.14872]
[1768482804291,0.13302377,3364.6,3363.0,0.14872]
[1768482804488,1.17961627,3364.4,3363.0,0.14872]
[1768482805792,0.13302377,3364.6,3363.0,0.14872]
[1768482806090,1.17961627,3364.3,3363.0,0.14872]
[1768482809397,1.17961627,3364.1,3363.0,0.14872]
[1768482810290,1.17961627,3363.9,3363.0,0.14872]
[1768482810495,1.17961627,3363.7,3363.0,0.14872]
[1768482811397,1.17961627,3363.9,3363.0,0.14872]
[1768482811991,1.17961627,3363.7,3363.0,0.14872]
[1768482812197,1.17961627,3363.5,3362.4,0.28289145]
[1768482812393,0.00445871,3363.3,3362.4,0.28289145]
[1768482813097,0.00445871,3363.3,3362.5,0.14874]
[1768482815201,0.00445871,3363.3,3362.6,0.14873]
[1768482822206,1.17961627,3363.9,3362.6,0.14873]
[1768482823305,0.00445871,3363.6,3362.6,0.14873]
[1768482830119,1.17961627,3363.5,3362.6,0.14873]
[1768482831317,0.00445871,3363.6,3362.6,0.14873]
[1768482831617,0.00445871,3363.6,3362.4,0.003231]
[1768482831816,1.18001931,3363.4,3362.4,0.003231]
[1768482832511,0.00445871,3363.6,3362.4,0.003231]
[1768482832818,1.18447802,3363.6,3362.4,0.003231]
[1768482835306,0.1351565,3363.5,3362.4,0.003231]
[1768482835517,1.18001931,3363.2,3361.6,0.1335573]
[1768482835717,0.1351565,3363.5,3361.6,0.1335573]
[1768482835918,1.18447802,3363.6,3361.6,0.1335573]
[1768482836124,0.90229094,3363.5,3361.6,0.1335573]
[1768482836419,1.18447802,3363.6,3361.6,0.13711864]
[1768482836612,0.00445871,3363.6,3362.2,0.2823073]
[1768482836814,0.00445871,3363.6,3362.3,0.1335573]
[1768482837212,0.13961521,3363.6,3362.2,0.14875]
[1768482837412,1.31963452,3363.6,3362.2,0.14875]
[1768482837920,0.13961521,3363.6,3362.2,0.14875]
[1768482839019,0.90206851,3363.5,3362.2,0.14875]
[1768482839220,0.13961521,3363.6,3362.2,0.14875]
[1768482839418,0.1351565,3363.3,3361.6,0.28589864]
[1768482839609,0.1351565,3363.3,3361.7,0.14877]
[1768482840724,1.18001931,3363.4,3361.9,0.1335573]
[1768482840921,1.27545871,3363.6,3361.9,0.1335573]
[1768482841120,0.90199405,3363.5,3361.9,0.1335573]
[1768482841318,1.27545871,3363.6,3361.9,0.1335573]
[1768482841523,0.90190168,3363.5,3361.9,0.1335573]
[1768482841720,1.03705818,3363.4,3361.8,0.14877]
[1768482841924,0.1351565,3363.2,3361.8,0.14877]
[1768482842117,1.31517581,3363.2,3362.2,0.00445871]
[1768482843230,0.1351565,3363.2,3362.2,0.00445871]
[1768482846528,2.45101931,3363.3,3362.2,0.00445871]
[1768482849036,2.58617581,3363.3,3362.2,0.00445871]
[1768482849336,2.58617581,3363.3,3361.8,0.14877]
[1768482849337,1.31517581,3362.9,3361.6,0.00356134]
[1768482849529,1.31869325,3362.9,3361.6,0.00356134]
[1768482849926,1.18353675,3362.9,3361.6,0.00356134]
[1768482850132,2.45353675,3362.9,3361.6,0.00356134]
[1768482854639,1.27351744,3362.9,3361.6,0.13711864]
[1768482857440,0.00351744,3362.9,3361.6,0.28589864]
[1768482857639,0.00351744,3362.9,3361.7,0.1335573]
[1768482862236,0.00351744,3362.9,3361.7,0.2823273]
[1768482862432,0.00351744,3362.9,3362.2,0.13843817]
[1768482862639,1.27,3363.9,3362.2,0.13843817]
[1768482862838,0.90196473,3363.5,3362.2,0.13843817]
[1768482863037,1.27,3363.9,3362.2,0.13843817]
[1768482863238,0.90492734,3363.5,3362.2,0.13843817]
[1768482863545,2.45001931,3364.0,3362.2,0.13843817]
[1768482863746,0.90490249,3363.5,3362.2,0.13843817]
[1768482863944,0.00683533,3363.6,3362.3,0.13886466]
[1768482864143,0.90490276,3363.5,3362.3,0.13886466]
[1768482864448,0.00683533,3363.6,3362.3,0.13886466]
[1768482864641,0.90500249,3363.5,3362.3,0.13886466]
[1768482864842,0.00683533,3363.6,3362.3,0.13886466]
[1768482865042,0.90500261,3363.5,3362.3,0.13886466]
[1768482865241,0.00683533,3363.6,3362.3,0.13886466]
[1768482865442,0.9050285,3363.5,3362.3,0.13886466]
[1768482865644,0.00683533,3363.6,3362.3,0.13886466]
[1768482865843,0.90502851,3363.5,3362.3,0.13886466]
[1768482866051,0.00683533,3363.6,3362.3,0.13886466]
[1768482866247,0.90504408,3363.5,3362.3,0.13886466]
[1768482866546,0.00683533,3363.6,3362.3,0.13886466]
[1768482866745,0.90501209,3363.5,3362.3,0.13886466]
[1768482866948,0.00683533,3363.6,3362.3,0.13886466]
[1768482867147,0.90501216,3363.5,3362.3,0.13886466]
[1768482867344,1.18001931,3363.0,3361.7,0.13886466]
[1768482870768,0.90531524,3362.9,3361.6,0.00356134]
[1768482870962,1.31354708,3363.0,3361.6,0.00356134]
[1768482871267,0.90533656,3362.9,3361.6,0.00356134]
[1768482871457,0.90533656,3362.8,3361.6,0.00356134]
[1768482871658,1.31354708,3363.0,3361.6,0.00356134]
[1768482871858,0.90536875,3362.9,3361.6,0.00356134]
[1768482872062,0.90536875,3362.8,3361.6,0.00356134]
[1768482872261,1.31354708,3363.0,3361.6,0.00356134]
[1768482872461,0.90535335,3362.9,3361.6,0.00356134]
[1768482872662,0.90535335,3362.8,3361.6,0.00356134]
[1768482872955,1.31354708,3363.0,3361.6,0.00356134]
[1768482873156,0.90535334,3362.9,3361.6,0.00356134]
[1768482873358,0.90535334,3362.8,3361.6,0.00356134]
[1768482873563,1.31354708,3363.0,3361.6,0.00356134]
[1768482873764,0.90534204,3362.9,3361.6,0.00356134]
[1768482873965,0.90534204,3362.8,3361.6,0.00356134]
[1768482874174,1.31354708,3363.0,3361.6,0.00356134]
[1768482874471,0.90534203,3362.9,3361.6,0.00356134]
[1768482874665,0.90534203,3362.8,3361.6,0.00356134]
[1768482874864,1.31354708,3363.0,3361.6,0.00356134]
[1768482875159,0.90534245,3362.9,3361.6,0.00356134]
[1768482875363,0.90534245,3362.8,3361.6,0.00356134]
[1768482875565,2.58254708,3363.0,3361.6,0.00356134]
[1768482875766,0.90532835,3362.9,3361.6,0.00356134]
[1768482875966,0.90532835,3362.8,3361.6,0.00356134]
[1768482876166,2.58254708,3363.0,3361.6,0.00356134]
[1768482876377,0.9053282,3362.9,3361.6,0.00356134]
[1768482876573,0.9053282,3362.8,3361.6,0.00356134]
[1768482876769,2.58254708,3363.0,3361.6,0.00356134]
[1768482876970,0.90532183,3362.9,3361.6,0.00356134]
[1768482877266,0.90532183,3362.8,3361.6,0.00356134]
[1768482877465,2.58254708,3363.0,3361.6,0.00356134]
[1768482877665,0.90532231,3362.9,3361.6,0.00356134]
[1768482877867,0.90532231,3362.8,3361.6,0.00356134]
[1768482878071,2.58254708,3363.0,3361.6,0.00356134]
[1768482878280,0.90528079,3362.9,3361.6,0.00356134]
[1768482878473,0.90528079,3362.8,3361.6,0.00356134]
[1768482878674,2.58254708,3363.0,3361.6,0.00356134]
[1768482878970,2.17431164,3362.9,3361.6,0.00356134]
[1768482879174,0.90531164,3362.8,3361.6,0.00356134]
[1768482879362,1.269,3362.9,3361.6,0.00356134]
[1768482879564,0.90531294,3362.8,3361.6,0.00356134]
[1768482879765,1.269,3362.9,3361.6,0.00356134]
[1768482879969,0.90531294,3362.8,3361.6,0.00356134]
[1768482880171,1.269,3362.9,3361.6,0.00356134]
[1768482880370,0.90531295,3362.8,3361.6,0.00356134]
[1768482880572,0.00683533,3363.6,3361.6,0.291206]
[1768482880872,0.90530089,3363.5,3361.7,0.13886466]
[1768482881067,2.0853202,3363.4,3361.7,0.13886466]
[1768482881267,0.90530089,3363.3,3361.7,0.13886466]
[1768482881567,0.90530089,3363.2,3361.7,0.13886466]
[1768482881768,0.90530089,3363.1,3361.7,0.13886466]
[1768482882073,1.18001931,3363.4,3361.7,0.13886466]
[1768482882276,0.90523572,3363.3,3361.7,0.13886466]
[1768482882475,0.90523572,3363.2,3361.7,0.13886466]
[1768482882770,0.90523572,3363.1,3361.7,0.13886466]
[1768482882970,1.18001931,3363.4,3361.7,0.13886466]
[1768482883171,0.90524743,3363.3,3361.7,0.13886466]
[1768482883371,0.90524743,3363.2,3361.7,0.13886466]
[1768482883574,0.90524743,3363.1,3361.7,0.13886466]
[1768482883773,1.18001931,3363.4,3361.7,0.13886466]
[1768482884077,0.90526365,3363.3,3361.7,0.13886466]
[1768482884376,0.90526365,3363.2,3361.7,0.13886466]
[1768482884587,0.90526365,3363.1,3361.7,0.13886466]
[1768482884790,1.18001931,3363.4,3361.7,0.13886466]
[1768482885076,0.90528388,3363.3,3361.7,0.13886466]
[1768482885273,0.90528388,3363.2,3361.7,0.13886466]
[1768482885466,0.90528388,3363.1,3361.7,0.13886466]
[1768482885673,1.18001931,3363.4,3361.7,0.13886466]
[1768482885874,0.90530488,3363.3,3361.7,0.13886466]
[1768482886175,0.90530488,3363.2,3361.7,0.13886466]
[1768482886473,0.90530488,3363.1,3361.7,0.13886466]
[1768482886673,1.18001931,3363.4,3361.7,0.13886466]
[1768482886874,0.90533075,3363.3,3361.7,0.13886466]
[1768482887074,0.90533075,3363.2,3361.7,0.13886466]
[1768482887275,0.90533075,3363.1,3361.7,0.13886466]
[1768482887473,1.18001931,3363.4,3361.7,0.13886466]
[1768482887672,0.90535604,3363.3,3361.7,0.13886466]
[1768482887867,0.90535604,3363.2,3361.7,0.13886466]
[1768482888078,0.90535604,3363.1,3361.7,0.13886466]
[1768482888366,1.18001931,3363.4,3361.7,0.13886466]
[1768482888577,0.90537528,3363.3,3361.7,0.13886466]
[1768482888778,0.90537528,3363.2,3361.7,0.13886466]
[1768482889077,0.90537528,3363.1,3361.7,0.13886466]
[1768482889280,1.18001931,3363.4,3361.7,0.13886466]
[1768482889467,0.90537419,3363.3,3361.7,0.13886466]
[1768482889671,0.90537419,3363.2,3361.7,0.13886466]
[1768482889872,0.90537419,3363.1,3361.7,0.13886466]
[1768482890073,1.18001931,3363.4,3361.7,0.13886466]
[1768482890283,0.90537416,3363.3,3361.7,0.13886466]
[1768482890469,0.90537416,3363.2,3361.7,0.13886466]
[1768482890669,0.90537416,3363.1,3361.7,0.13886466]
[1768482890877,1.18001931,3363.4,3361.7,0.13886466]
[1768482891076,0.90537376,3363.3,3361.7,0.13886466]
[1768482891271,2.08560654,3363.2,3361.8,1.18023278]
[1768482891478,0.90537376,3363.1,3361.8,1.32320283]
[1768482895791,1.18023278,3363.2,3361.8,1.32320283]
[1768482895988,0.90614246,3363.1,3361.8,1.32320283]
[1768482896189,1.18023278,3363.2,3361.8,1.32320283]
[1768482896382,0.90614251,3363.1,3361.8,1.32320283]
[1768482896584,0.90614251,3363.0,3361.8,1.32320283]
[1768482896789,1.18023278,3363.2,3361.8,1.32320283]
[1768482897089,0.90631487,3363.1,3361.8,1.32320283]
[1768482897278,0.90631487,3363.0,3361.8,1.32320283]
[1768482897480,1.18023278,3363.2,3361.8,1.32320283]
[1768482897693,0.9065206,3363.1,3361.8,1.32320283]
[1768482897892,0.9065206,3363.0,3361.8,1.32320283]
[1768482898193,1.18023278,3363.2,3361.8,1.32320283]
[1768482898392,0.90651836,3363.1,3361.8,1.32320283]
[1768482898691,0.90651836,3363.0,3361.8,1.32320283]
[1768482898998,1.267,3363.4,3362.1,1.18023278]
[1768482899193,0.9064964,3363.3,3362.1,1.18023278]
[1768482899496,0.9064964,3363.2,3362.1,1.18023278]
[1768482899794,0.9064964,3363.1,3362.1,1.18023278]
[1768482899987,1.267,3363.4,3362.1,1.18023278]
[1768482900188,0.90646621,3363.3,3362.1,1.18023278]
[1768482900388,0.00683533,3363.6,3362.6,1.18023278]
[1768482900584,0.90614924,3363.5,3362.6,1.18023278]
[1768482900784,0.00683533,3363.6,3362.6,1.18023278]
[1768482901083,0.90614804,3363.5,3362.5,0.14297005]
[1768482901287,0.00683533,3363.6,3362.5,0.14297005]
[1768482903795,0.00683533,3363.6,3362.6,1.18023278]
[1768482904378,0.00683533,3363.6,3362.8,1.32320283]
[1768482907190,0.00683533,3363.6,3362.8,0.14297005]
[1768482907894,1.18023278,3364.1,3362.8,0.14297005]
[1768482908083,0.90539812,3364.0,3362.8,0.14297005]
[1768482908290,0.90539812,3363.9,3362.8,0.14297005]
[1768482908584,0.90539812,3363.8,3362.8,0.14297005]
[1768482908788,1.18023278,3364.1,3362.8,0.14297005]
[1768482908988,0.00445871,3363.6,3362.8,0.14297005]
[1768482909890,0.00445871,3363.6,3363.0,1.18023278]
[1768482910096,0.00283536,3363.8,3363.2,1.32320283]
[1768482910493,0.14864,3364.8,3363.2,1.32320283]
[1768482910696,3.3513271,3364.7,3363.5,1.18023278]
[1768482910992,3.3513271,3364.7,3363.2,1.32320283]
[1768482910993,0.90509432,3364.6,3363.3,0.14297005]
[1768482911188,0.00445871,3364.4,3363.4,1.32320283]
[1768482911389,0.00678404,3364.4,3363.4,1.32320283]
[1768482911793,0.00678404,3364.4,3363.7,1.18023278]
[1768482912297,0.00678404,3364.4,3363.0,1.32895278]
[1768482912298,0.00678404,3364.4,3363.5,1.32320283]
[1768482913691,0.00678404,3364.4,3363.6,0.14297005]
[1768482915691,0.00678404,3364.4,3363.7,0.00445871]
[1768482916497,0.00678404,3364.4,3363.7,1.18469149]
[1768482916698,1.18023278,3365.1,3363.7,1.32766154]
[1768482916999,0.90292067,3365.0,3363.8,0.14297005]
[1768482917199,1.18023278,3365.0,3363.8,0.14297005]
[1768482917395,1.18023278,3364.8,3363.7,0.00445871]
[1768482917600,1.18023278,3364.6,3363.7,0.00445871]
[1768482917900,0.00445871,3364.6,3363.7,0.00445871]
[1768482920097,0.00445871,3364.6,3363.7,0.14742876]
[1768482923806,0.00445871,3364.6,3363.7,0.00445871]
[1768482925299,0.00445871,3364.6,3363.7,0.1443898]
[1768482927801,0.00445871,3364.6,3363.8,1.18023278]
[1768482928001,0.00308425,3364.8,3363.9,0.13993109]
[1768482929201,0.00308425,3364.8,3364.0,1.32016387]
[1768482929507,0.00308425,3364.8,3364.0,0.14303969]
[1768482929809,0.00445871,3364.7,3364.0,1.32327247]
[1768482930308,0.70984774,3365.6,3364.2,1.32016387]
[1768482930500,0.90281628,3365.5,3364.2,1.32016387]
[1768482930701,0.90281628,3365.4,3364.2,1.32016387]
[1768482930901,0.70984774,3365.6,3364.2,1.32016387]
[1768482931100,0.90292069,3365.5,3364.2,1.32016387]
[1768482931412,0.90292069,3365.4,3364.2,1.32016387]
[1768482932206,0.90292069,3365.4,3364.2,0.13993109]
[1768482932402,0.90292069,3365.4,3364.2,1.32016387]
[1768482933210,0.90292069,3365.4,3364.3,0.13993109]
[1768482934303,0.0026215,3365.5,3364.4,1.18023278]
[1768482935314,0.00445871,3365.3,3364.4,1.18023278]
[1768482935904,0.00445871,3365.3,3364.3,0.13993109]
[1768482936108,0.00445871,3365.3,3364.3,1.32016387]
[1768482938017,0.00445871,3365.3,3364.4,0.13993109]
[1768482938921,0.00445871,3365.3,3364.5,1.18023278]
[1768482943710,0.00445871,3365.3,3364.4,1.32016387]
[1768482944408,1.18469149,3365.3,3364.4,0.13993109]
[1768482944923,0.00445871,3365.3,3364.4,0.13993109]
[1768482946311,0.00445871,3365.3,3364.4,1.32016387]
[1768482949227,0.14016753,3366.1,3364.0,0.1517786]
[1768482949228,1.41157,3366.3,3364.7,1.32016387]
[1768482949420,2.08508603,3366.2,3364.9,1.18023278]
[1768482949621,0.90485325,3366.1,3364.9,1.18023278]
[1768482949915,0.90485325,3366.0,3364.9,1.18023278]
[1768482950122,0.90485325,3365.9,3364.9,1.18023278]
[1768482950316,0.90782573,3365.8,3364.9,1.18023278]
[1768482950529,0.90485325,3365.7,3364.9,1.18023278]
[1768482950712,0.90485325,3365.6,3364.9,1.18023278]
[1768482950912,0.00297248,3365.8,3364.9,1.18023278]
[1768482951116,0.90483576,3365.7,3364.7,1.32016387]
[1768482951325,0.90483576,3365.6,3364.7,1.32016387]
[1768482951525,0.00297248,3365.8,3364.7,1.32016387]
[1768482951727,0.90487453,3365.7,3364.7,1.32016387]
[1768482951918,0.90487453,3365.6,3364.7,1.32016387]
[1768482952118,0.00297248,3365.8,3364.7,1.32016387]
[1768482952316,0.90493347,3365.7,3364.7,1.32016387]
[1768482952531,0.90493347,3365.6,3364.8,0.13952786]
[1768482952724,0.00297248,3365.8,3364.8,0.13952786]
[1768482952921,0.90493332,3365.7,3364.8,0.13952786]
[1768482953122,0.00297248,3365.8,3364.8,0.13952786]
[1768482953332,0.90550586,3365.7,3364.8,0.13952786]
[1768482953519,0.00297248,3365.8,3364.8,0.13952786]
[1768482953717,0.90550588,3365.7,3364.8,0.13952786]
[1768482953936,0.00297248,3365.8,3364.8,0.13952786]
[1768482954230,0.90550616,3365.7,3364.8,0.13952786]
[1768482954419,0.00297248,3365.8,3364.8,0.13952786]
[1768482954620,0.90558668,3365.7,3364.8,0.13952786]
[1768482954822,0.00297248,3365.8,3364.8,0.13952786]
[1768482955037,0.90558654,3365.7,3364.8,0.13952786]
[1768482955330,0.90558654,3365.6,3364.8,0.13952786]
[1768482955528,0.00297248,3365.8,3364.8,0.13952786]
[1768482955728,0.90569904,3365.7,3364.4,0.13952786]
[1768482955923,0.90569904,3365.7,3364.0,0.0031086]
[1768482955924,0.90569904,3365.6,3364.0,0.14263646]
[1768482956123,0.90569904,3365.5,3364.0,0.14263646]
[1768482956328,1.17819474,3365.7,3364.0,0.14263646]
[1768482956329,0.90569904,3365.4,3364.0,0.14263646]
[1768482956532,1.17819474,3365.7,3364.0,0.14263646]
[1768482956730,0.90595156,3365.6,3364.0,0.14263646]
[1768482957030,0.90595156,3365.5,3364.0,0.14263646]
[1768482957226,0.90595156,3365.4,3364.0,0.14263646]
[1768482957429,1.17819474,3365.7,3364.0,0.14263646]
[1768482957728,0.90618119,3365.6,3364.0,0.14263646]
[1768482957929,0.90618119,3365.5,3364.0,0.14263646]
[1768482958128,0.90618119,3365.4,3364.0,0.14263646]
[1768482958330,1.17819474,3365.7,3364.0,0.14263646]
[1768482958537,0.90632435,3365.6,3364.0,0.14263646]
[1768482958724,0.90632435,3365.5,3364.0,0.14263646]
[1768482958924,0.90632435,3365.4,3364.0,0.14263646]
[1768482959123,1.17819474,3365.7,3364.0,0.14263646]
[1768482959324,0.90650139,3365.6,3364.0,0.14263646]
[1768482959525,0.90650139,3365.5,3364.0,0.14263646]
[1768482959726,0.90650139,3365.4,3364.0,0.14263646]
[1768482959927,1.17819474,3365.7,3364.0,0.14263646]
[1768482960129,0.90650145,3365.6,3364.0,0.14263646]
[1768482960426,0.90650145,3365.5,3364.0,0.14263646]
[1768482960733,0.90650145,3365.4,3364.0,0.14263646]
[1768482960927,1.17819474,3365.7,3364.0,0.14263646]
[1768482961129,0.90671179,3365.6,3364.0,0.14263646]
[1768482961326,0.90671179,3365.5,3364.0,0.14263646]
[1768482961523,0.90671179,3365.4,3364.0,0.14263646]
[1768482961726,0.28198527,3365.8,3364.0,0.14263646]
[1768482961927,1.05540457,3365.7,3364.0,0.14263646]
[1768482962128,0.90680457,3365.6,3364.0,0.14263646]
[1768482971845,0.14861,3365.4,3364.0,0.14263646]
[1768482972151,1.05542457,3365.3,3364.0,0.0031086]
[1768482972354,0.90680457,3365.2,3364.0,0.0031086]
[1768482976755,0.90680457,3365.2,3364.0,0.14263646]
[1768482978858,1.262,3365.6,3364.0,0.14263646]
[1768482979063,0.90600383,3365.5,3364.0,0.14263646]
[1768482979357,1.262,3365.6,3364.0,0.14263646]
[1768482979358,0.90600383,3365.4,3364.0,0.14263646]
[1768482979554,1.262,3365.6,3364.0,0.14263646]
[1768482979753,0.90599428,3365.5,3364.0,0.14263646]
[1768482979951,0.90599428,3365.4,3364.0,0.14263646]
[1768482980151,0.00297248,3365.8,3364.0,0.14263646]
[1768482980351,0.90599051,3365.7,3364.0,0.14263646]
[1768482980564,0.90599051,3365.6,3364.0,0.14263646]
[1768482980753,0.90599051,3365.5,3364.0,0.14263646]
[1768482981062,0.90599051,3365.4,3364.0,0.14263646]
[1768482981250,0.00297248,3365.8,3364.0,0.14263646]
[1768482981554,0.90605005,3365.7,3364.3,0.13758371]
[1768482981750,0.90605005,3365.6,3364.3,0.13758371]
[1768482981949,0.00297248,3365.8,3364.3,0.13758371]
[1768482982154,0.90600639,3365.7,3364.3,0.13758371]
[1768482982458,0.90600639,3365.6,3364.3,0.13758371]
[1768482982661,0.00297248,3365.8,3364.3,0.13758371]
[1768482982860,0.9060056,3365.7,3364.3,0.13758371]
[1768482983060,0.9060056,3365.6,3364.3,0.13758371]
[1768482983358,0.00297248,3365.8,3364.3,0.13758371]
[1768482983559,0.90633739,3365.7,3364.3,0.13758371]
[1768482983762,0.00297248,3365.8,3364.3,0.13758371]
[1768482983763,0.90633739,3365.6,3364.3,0.13758371]
[1768482983950,0.00297248,3365.8,3364.3,0.13758371]
[1768482984151,0.90633739,3365.7,3364.3,0.13758371]
[1768482984352,0.90633739,3365.6,3364.3,0.13758371]
[1768482984553,0.00297248,3365.8,3364.3,0.13758371]
[1768482984753,0.90636243,3365.7,3364.3,0.13758371]
[1768482984949,0.00297248,3365.8,3364.7,0.1350635]
[1768482985861,0.00297248,3365.8,3364.4,0.14865]
[1768482985862,0.00297248,3365.8,3364.4,0.2837135]
[1768482986365,0.00297248,3365.8,3364.6,0.1350635]
[1768482986566,0.00297248,3365.8,3364.9,1.31325824]
[1768482987868,0.00297248,3365.8,3365.0,0.1350635]
[1768482988060,0.13937303,3366.7,3365.0,0.1350635]
[1768482989166,0.13937303,3367.1,3365.2,0.1350635]
[1768482989457,0.78416838,3367.2,3365.8,0.13952221]
[1768482989661,0.78416838,3367.2,3366.1,0.1350635]
[1768482990061,0.14851,3367.8,3366.1,0.1350635]
[1768482990261,0.90439343,3367.7,3366.1,0.1350635]
[1768482990456,0.90439343,3367.6,3366.1,0.1350635]
[1768482990661,0.00355683,3367.8,3366.3,0.1350635]
[1768482993051,0.00355683,3367.8,3366.6,0.1350635]
[1768482993256,0.13937303,3368.4,3366.6,0.13876332]
[1768482993455,0.13937303,3368.3,3366.6,0.13876332]
[1768482994463,0.14283766,3368.3,3366.6,0.13876332]
[1768482995859,0.00346463,3368.3,3366.6,0.13876332]
[1768483003768,1.26246463,3368.3,3366.6,0.13876332]
[1768483004072,0.00346463,3368.3,3366.9,0.1350635]
[1768483007164,1.33013937,3368.3,3366.6,0.00369982]
[1768483007363,1.33013937,3368.3,3366.6,0.13876332]
[1768483008370,0.15194463,3368.3,3366.6,0.13876332]
[1768483009267,1.41094463,3368.3,3366.6,0.13876332]
[1768483012769,1.258,3368.2,3366.6,0.13876332]
[1768483013480,1.258,3368.2,3366.9,1.31767847]
[1768483014474,0.00346463,3368.3,3367.5,1.17666017]
[1768483014681,0.00346463,3368.3,3367.4,0.1410183]
[1768483014878,0.00346463,3368.3,3367.6,1.18111888]
[1768483015079,0.00346463,3368.3,3367.6,0.00445871]
[1768483017693,0.14843,3369.5,3367.6,0.14547701]
[1768483017889,0.90085712,3369.4,3368.2,1.17666017]
[1768483018183,0.90085712,3369.3,3368.0,1.17666017]
[1768483018382,0.90085712,3369.2,3368.0,1.17666017]
[1768483018681,0.90085712,3369.1,3368.0,1.17666017]
[1768483018883,0.90085712,3369.0,3368.0,1.17666017]
[1768483020580,0.90085712,3369.0,3367.9,0.1410183]
[1768483020783,0.00259898,3369.1,3368.7,0.1410183]
[1768483020992,1.259,3370.4,3369.2,1.17666017]
[1768483021283,1.17666017,3369.9,3368.7,0.1410183]
[1768483021480,1.17666017,3370.1,3369.5,0.00445183]
[1768483021679,0.14839,3370.4,3369.5,0.00445183]
[1768483021886,0.1429239,3370.2,3368.3,0.1410183]
[1768483022084,1.17666017,3369.4,3368.3,0.1410183]
[1768483022282,1.17666017,3369.2,3367.8,0.2895183]
[1768483022472,1.17666017,3369.2,3367.8,1.46617847]
[1768483022885,1.17666017,3369.2,3368.2,0.00445183]
[1768483023084,1.17666017,3369.2,3368.2,0.00669896]
[1768483023587,1.17666017,3369.4,3368.2,0.00669896]
[1768483023889,1.26,3369.6,3368.3,1.31767847]
[1768483024091,2.43666017,3369.6,3368.4,0.1410183]
[1768483024489,1.17666017,3369.4,3368.4,0.1410183]
[1768483025688,1.26,3369.6,3368.4,0.1410183]
[1768483026086,0.14841,3369.9,3368.6,1.17666017]
[1768483026292,1.26,3369.8,3368.6,1.31767847]
[1768483026483,0.14841,3369.9,3368.6,1.31767847]
[1768483026683,1.26,3369.8,3368.7,0.1410183]
[1768483026879,0.14841,3369.9,3368.7,0.1410183]
[1768483027085,1.40841,3369.9,3368.7,0.1410183]
[1768483028689,1.17666017,3369.8,3368.7,0.1410183]
[1768483029084,1.40841,3369.9,3368.7,0.1410183]
[1768483029280,1.17666017,3370.1,3368.7,0.1410183]
[1768483029480,0.0044289,3369.6,3368.7,0.1410183]
[1768483029784,0.00300904,3370.4,3369.1,1.31767847]
[1768483029978,1.259,3370.3,3369.1,1.31767847]
[1768483030188,1.17666017,3370.2,3368.7,0.1410183]
[1768483030383,1.17666017,3369.9,3368.7,0.1410183]
[1768483031294,1.17666017,3370.0,3368.7,0.1410183]
[1768483031492,1.17666017,3370.0,3368.8,0.1410183]
[1768483033594,1.17666017,3370.0,3368.4,1.31767847]
[1768483034596,1.17666017,3370.0,3368.5,0.1410183]
[1768483035897,1.17666017,3370.0,3368.6,1.31767847]
[1768483037291,1.259,3370.3,3368.6,1.31767847]
[1768483037492,1.17666017,3370.0,3368.6,1.31767847]
[1768483037696,1.17666017,3370.2,3368.8,1.31767847]
[1768483037887,0.89420104,3370.1,3368.8,1.31767847]
[1768483038090,1.17666017,3370.0,3368.8,0.1410183]
[1768483038291,1.17666017,3369.8,3368.8,0.1410183]
[1768483038599,1.17666017,3369.5,3368.4,0.2894983]
[1768483038801,1.17666017,3369.8,3368.4,0.2894983]
[1768483039298,1.17666017,3369.8,3368.4,1.46615847]
[1768483039895,1.17666017,3369.8,3368.5,0.1410183]
[1768483040096,1.4074,3370.2,3368.8,0.1410183]
[1768483040394,2.07124301,3370.1,3368.8,0.1410183]
[1768483040596,1.17666017,3370.1,3368.8,0.1410183]
[1768483041902,2.43466017,3370.1,3368.8,0.1410183]
[1768483042094,1.258,3370.1,3368.8,0.1410183]
[1768483042289,2.43466017,3370.1,3368.8,0.1410183]
[1768483042501,0.8954748,3370.0,3368.8,0.1410183]
[1768483042703,2.43466017,3370.1,3368.8,0.1410183]
[1768483042903,0.89547494,3370.0,3368.8,0.1410183]
[1768483043203,2.43466017,3370.1,3368.8,0.1410183]